bitfinex/quotes_BTCUSD_20241110
["timestamp","ask_amount","ask_price","bid_price","bid_amount"]
[1731215566973,0.005,79102.0,79090.0,0.1]
[1731215567387,0.005,79105.0,79091.0,0.02522]
[1731215567614,0.18963218,79113.0,79093.0,0.02522]
[1731215567807,0.18963218,79105.0,79093.0,0.02522]
[1731215568010,0.005,79099.0,79095.0,0.02522]
[1731215568464,0.18963218,79118.0,79099.0,0.12522]
[1731215568684,0.18963218,79105.0,79099.0,0.12522]
[1731215568903,0.19463218,79118.0,79099.0,0.25746102]
[1731215569107,0.18963218,79118.0,79101.0,0.12522]
[1731215569316,0.18963218,79118.0,79105.0,0.02522]
[1731215569760,0.005,79140.0,79107.0,0.12522]
[1731215569961,0.18963218,79126.0,79109.0,0.12522]
[1731215570167,0.18963218,79126.0,79111.0,0.12522]
[1731215570317,0.04164594,79169.0,79111.0,0.12522]
[1731215570318,0.18963218,79133.0,79111.0,0.25998895]
[1731215570526,0.18963218,79133.0,79120.0,0.12522]
[1731215570839,0.18963218,79133.0,79122.0,0.12522]
[1731215571066,0.18963218,79133.0,79124.0,0.12522]
[1731215571189,0.18963218,79133.0,79126.0,0.12522]
[1731215571385,0.005,79153.0,79128.0,0.12522]
[1731215571600,0.005,79155.0,79130.0,0.12522]
[1731215571794,0.005,79153.0,79132.0,0.02522]
[1731215572007,0.005,79147.0,79134.0,0.12522]
[1731215572240,0.005,79141.0,79134.0,0.12522]
[1731215572445,0.005,79143.0,79134.0,0.1]
[1731215572744,0.005,79145.0,79134.0,0.1]
[1731215573074,0.005,79155.0,79134.0,0.01413751]
[1731215573290,0.30567273,79159.0,79130.0,0.04137506]
[1731215573291,0.18963218,79146.0,79130.0,0.04137506]
[1731215573655,0.18963218,79146.0,79125.0,0.08]
[1731215573656,0.005,79151.0,79132.0,0.1]
[1731215573854,0.18963218,79145.0,79132.0,0.23224102]
[1731215574199,0.6846,79153.0,79132.0,0.23224102]
[1731215574398,0.18963218,79146.0,79132.0,0.23224102]
[1731215574629,0.18963218,79146.0,79133.0,0.0232241]
[1731215574806,0.005,79142.0,79132.0,0.1]
[1731215574988,0.005,79142.0,79126.0,0.1]
[1731215575407,0.18963218,79146.0,79128.0,0.1]
[1731215575408,0.19463218,79146.0,79128.0,0.1]
[1731215576329,0.11743214,79146.0,79128.0,0.1]
[1731215576506,0.005,79143.0,79126.0,0.1]
[1731215576707,0.005,79142.0,79125.0,0.0413588]
[1731215576961,0.005,79142.0,79108.0,0.0466]
[1731215576962,0.005,79142.0,79120.0,0.18963218]
[1731215577195,0.18963218,79138.0,79121.0,0.13224102]
[1731215577406,0.18963218,79138.0,79094.0,0.39066528]
[1731215577616,0.6846,79137.0,79115.0,0.18963218]
[1731215577808,0.18963218,79127.0,79116.0,0.15120424]
[1731215577954,0.18963218,79127.0,79116.0,0.13224102]
[1731215578559,0.1846,79137.0,79116.0,0.13224102]
[1731215578760,0.18963218,79130.0,79116.0,0.13224102]
[1731215578965,0.18963218,79130.0,79117.0,0.0132241]
[1731215579164,0.18963218,79130.0,79119.0,0.1]
[1731215579367,0.18963218,79130.0,79117.0,0.1132241]
[1731215579643,0.6846,79129.0,79117.0,0.1]
[1731215580041,0.18963218,79122.0,79095.0,0.0797]
[1731215580241,0.6846,79121.0,79109.0,0.18963218]
[1731215580441,0.18963218,79120.0,79096.0,0.13224102]
[1731215580702,0.18963218,79120.0,79097.0,0.21981147]
[1731215580941,0.18963218,79112.0,79094.0,0.04085193]
[1731215582503,0.16441218,79112.0,79095.0,0.02522]
[1731215583227,0.6846,79119.0,79097.0,0.12522]
[1731215583479,0.18963218,79111.0,79099.0,0.12522]
[1731215583681,0.18963218,79111.0,79099.0,0.02522]
[1731215583807,0.81684102,79119.0,79099.0,0.02522]
[1731215584018,0.18963218,79112.0,79101.0,0.12522]
[1731215584238,0.18963218,79112.0,79103.0,0.02522]
[1731215584443,0.6846,79119.0,79107.0,0.02522]
[1731215584605,0.55938,79105.0,79095.0,0.02522]
[1731215584840,0.55938,79104.0,79097.0,0.02522]
[1731215585042,0.50257219,79104.0,79099.0,0.02522]
[1731215585246,0.18963218,79103.0,79101.0,0.02522]
[1731215585481,0.50257219,79104.0,79101.0,0.02522]
[1731215585659,0.18963218,79103.0,79095.0,0.02522]
[1731215585881,0.50257219,79102.0,79095.0,0.02522]
[1731215586272,0.50257219,79102.0,79096.0,0.02522]
[1731215587292,0.50257219,79102.0,79097.0,0.25746102]
[1731215587508,0.41532315,79102.0,79099.0,0.02522]
[1731215587731,0.41532315,79102.0,79101.0,0.12522]
[1731215587957,0.41532315,79102.0,79101.0,0.32461484]
[1731215588188,0.26527629,79102.0,79101.0,0.25746102]
[1731215588871,0.15481462,79102.0,79101.0,0.25746102]
[1731215590542,0.68292,79102.0,79101.0,0.25746102]
[1731215590742,0.68194044,79102.0,79101.0,0.316049]
[1731215590899,0.21532968,79102.0,79101.0,0.316049]
[1731215591304,0.21532968,79102.0,79101.0,0.25746102]
[1731215591498,0.00168,79112.0,79101.0,0.25746102]
[1731215591703,0.18963218,79109.0,79103.0,0.02522]
[1731215591922,0.18963218,79109.0,79105.0,0.02522]
[1731215592128,0.00168,79112.0,79107.0,0.12522]
[1731215592362,0.18963218,79110.0,79109.0,0.02522]
[1731215592566,0.00168,79112.0,79109.0,0.25746102]
[1731215592732,0.00168,79112.0,79111.0,0.02522]
[1731215592935,0.00168,79112.0,79111.0,0.12522]
[1731215593465,0.00168,79112.0,79111.0,0.1]
[1731215593710,0.00168,79112.0,79111.0,0.11]
[1731215593991,0.00168,79112.0,79111.0,0.01]
[1731215594167,0.00168,79112.0,79097.0,0.02522]
[1731215594348,0.00168,79112.0,79100.0,0.02522]
[1731215594726,0.00168,79112.0,79103.0,0.15746102]
[1731215594920,0.00168,79112.0,79104.0,0.1]
[1731215595130,0.00168,79112.0,79106.0,0.1]
[1731215595285,0.00168,79112.0,79107.0,0.16798712]
[1731215595520,0.00168,79112.0,79108.0,0.1]
[1731215595737,0.00168,79112.0,79110.0,0.1]
[1731215595938,0.00168,79112.0,79111.0,0.13224102]
[1731215596124,0.00168,79112.0,79111.0,0.23224102]
[1731215596337,0.00168,79112.0,79111.0,0.26903973]
[1731215596907,0.6846,79117.0,79112.0,0.1]
[1731215597116,0.6846,79117.0,79114.0,0.1]
[1731215597340,0.6846,79117.0,79116.0,0.1]
[1731215597543,0.6846,79117.0,79116.0,0.23224102]
[1731215597767,0.6846,79128.0,79116.0,0.26423864]
[1731215597967,0.6846,79127.0,79118.0,0.1]
[1731215598162,0.6846,79127.0,79118.0,0.23224102]
[1731215598367,0.6846,79127.0,79119.0,0.03642386]
[1731215599580,0.18963218,79121.0,79119.0,0.03642386]
[1731215599801,0.30067273,79125.0,79111.0,0.05093646]
[1731215600025,0.005,79122.0,79092.0,0.02522]
[1731215600232,0.6846,79121.0,79103.0,0.18963218]
[1731215600458,0.6846,79121.0,79094.0,0.0521764]
[1731215600459,0.19463218,79117.0,79094.0,0.0521764]
[1731215600654,0.24453218,79117.0,79095.0,0.18963218]
[1731215600854,0.0792,79116.0,79095.0,0.18963218]
[1731215601072,0.18963218,79109.0,79094.0,0.13308102]
[1731215601467,0.0792,79116.0,79095.0,0.13224102]
[1731215601673,0.18963218,79109.0,79096.0,0.11848584]
[1731215601876,0.0792,79116.0,79098.0,0.1]
[1731215602052,0.18963218,79109.0,79098.0,0.23224102]
[1731215602249,0.0792,79116.0,79098.0,0.23224102]
[1731215602490,0.18963218,79109.0,79099.0,0.02522]
[1731215602691,0.18963218,79109.0,79101.0,0.02522]
[1731215602875,0.05398,79116.0,79101.0,0.02522]
[1731215603508,0.6846,79115.0,79101.0,0.02522]
[1731215603710,0.6846,79115.0,79095.0,0.02522]
[1731215603926,0.6846,79115.0,79094.0,0.05261737]
[1731215603927,0.6846,79115.0,79097.0,0.12522]
[1731215604143,0.6846,79115.0,79094.0,0.05261737]
[1731215604144,0.6846,79115.0,79101.0,0.1]
[1731215604332,0.18963218,79114.0,79106.0,0.02522]
[1731215604697,0.11960397,79114.0,79108.0,0.12522]
[1731215604926,0.11960397,79114.0,79110.0,0.02522]
[1731215605139,0.11960397,79114.0,79112.0,0.12522]
[1731215605354,0.6501883,79124.0,79114.0,0.02522]
[1731215605565,0.6501883,79124.0,79116.0,0.12522]
[1731215605566,0.18963218,79118.0,79116.0,0.12522]
[1731215605784,0.6501883,79124.0,79117.0,0.02522]
[1731215606636,0.1846,79137.0,79120.0,0.02522]
[1731215606883,0.04259894,79137.0,79124.0,0.02522]
[1731215607079,0.18963218,79139.0,79136.0,0.25746102]
[1731215607222,0.18963218,79139.0,79138.0,0.12522]
[1731215607578,0.18225992,79146.0,79140.0,0.02522]
[1731215607796,0.18225992,79146.0,79142.0,0.12522]
[1731215607952,0.18963218,79162.0,79144.0,0.02522]
[1731215608159,0.18963218,79162.0,79146.0,0.12522]
[1731215608358,0.18963218,79161.0,79148.0,0.12522]
[1731215608557,0.16338346,79161.0,79150.0,0.12522]
[1731215608763,0.16338346,79161.0,79152.0,0.02522]
[1731215608990,0.16338346,79161.0,79154.0,0.02522]
[1731215609194,0.16338346,79161.0,79156.0,0.02522]
[1731215609364,0.16338346,79161.0,79158.0,0.02522]
[1731215609720,0.076416,79183.0,79160.0,0.12522]
[1731215609950,0.18963218,79166.0,79162.0,0.02522]
[1731215610160,0.18963218,79171.0,79164.0,0.12522]
[1731215610277,0.18558865,79181.0,79166.0,0.02522]
[1731215610478,0.18558865,79181.0,79168.0,0.12522]
[1731215610722,0.18558865,79181.0,79170.0,0.12522]
[1731215610929,0.18558865,79181.0,79172.0,0.02522]
[1731215611102,0.18558865,79181.0,79174.0,0.02522]
[1731215611826,0.0011,79181.0,79174.0,0.02522]
[1731215612006,0.0011,79181.0,79175.0,0.13224102]
[1731215612365,0.000716,79183.0,79177.0,0.02522]
[1731215612577,0.000716,79183.0,79179.0,0.1]
[1731215612736,0.000716,79183.0,79181.0,0.12522]
[1731215612912,0.000716,79183.0,79181.0,0.25746102]
[1731215613329,5.72899362,79182.0,79181.0,0.25746102]
[1731215613529,5.72372864,79182.0,79181.0,0.25746102]
[1731215613811,5.60661977,79182.0,79181.0,0.25746102]
[1731215613999,0.005,79167.0,79122.0,0.05789121]
[1731215614210,6.29527629,79182.0,79162.0,0.18963218]
[1731215614211,0.005,79180.0,79162.0,0.18963218]
[1731215614533,0.005,79180.0,79139.0,0.082]
[1731215614534,5.73011977,79182.0,79139.0,0.082]
[1731215614705,5.60661977,79182.0,79144.0,0.002]
[1731215614910,5.60661977,79182.0,79139.0,0.082]
[1731215615122,5.60661977,79182.0,79149.0,0.18963218]
[1731215615123,0.18963218,79170.0,79149.0,0.18963218]
[1731215615337,0.18963218,79170.0,79150.0,0.15746102]
[1731215616199,0.18963218,79170.0,79152.0,0.02522]
[1731215616413,0.18963218,79170.0,79154.0,0.02522]
[1731215616632,0.18963218,79170.0,79156.0,0.12522]
[1731215616839,0.18963218,79170.0,79158.0,0.12522]
[1731215617052,0.18963218,79170.0,79160.0,0.12522]
[1731215617262,0.0461,79172.0,79160.0,0.12522]
[1731215617470,0.18963218,79171.0,79160.0,0.12522]
[1731215617755,0.1247,79160.0,79139.0,0.18963218]
[1731215617956,0.005,79144.0,79139.0,0.18963218]
[1731215618195,0.16297835,79160.0,79139.0,0.18963218]
[1731215618196,0.01,79150.0,79139.0,0.18963218]
[1731215618404,0.1247,79160.0,79139.0,0.18963218]
[1731215618405,0.18963218,79159.0,79139.0,0.18963218]
[1731215618600,0.005,79157.0,79128.0,0.18963218]
[1731215618832,0.005,79157.0,79140.0,0.13224102]
[1731215619025,0.18963218,79151.0,79140.0,0.13224102]
[1731215619528,0.18963218,79151.0,79141.0,0.02522]
[1731215619870,0.005,79163.0,79129.0,0.00252716]
[1731215619871,0.005,79171.0,79144.0,0.1]
[1731215620080,0.18963218,79156.0,79146.0,0.12522]
[1731215620245,0.18963218,79164.0,79146.0,0.23224102]
[1731215620481,0.005,79126.0,79093.0,0.18963218]
[1731215620686,0.128,79133.0,79109.0,0.18963218]
[1731215620894,0.18963218,79131.0,79101.0,0.18963218]
[1731215621221,0.13224102,79130.0,79112.0,0.18963218]
[1731215621454,0.18963218,79129.0,79102.0,0.18963218]
[1731215621648,0.13224102,79128.0,79102.0,0.18963218]
[1731215621868,0.13224102,79128.0,79093.0,0.18963218]
[1731215621869,0.18963218,79120.0,79093.0,0.18963218]
[1731215622069,0.17722834,79128.0,79093.0,0.18963218]
[1731215622070,0.13224102,79119.0,79093.0,0.18963218]
[1731215622630,0.18963218,79118.0,79093.0,0.18963218]
[1731215622808,0.18214102,79117.0,79093.0,0.18963218]
[1731215623571,0.18214102,79117.0,79075.0,0.01]
[1731215623572,0.18963218,79114.0,79086.0,0.18963218]
[1731215623775,0.19948561,79113.0,79086.0,0.18963218]
[1731215623960,0.13224102,79113.0,79094.0,0.19047218]
[1731215624176,0.05331473,79113.0,79094.0,0.19047218]
[1731215624574,0.005,79088.0,79071.0,0.18963218]
[1731215624832,0.13224102,79087.0,79083.0,0.18963218]
[1731215624973,0.0499,79091.0,79084.0,0.18963218]
[1731215625248,0.30067273,79086.0,79085.0,0.00567383]
[1731215625411,0.30067273,79086.0,79071.0,0.17742118]
[1731215625624,0.30067273,79086.0,79072.0,0.04456713]
[1731215625849,0.30067273,79086.0,79073.0,0.04456713]
[1731215626051,0.18963218,79085.0,79074.0,0.04456713]
[1731215626252,0.18963218,79085.0,79075.0,0.04456713]
[1731215626401,0.18963218,79085.0,79076.0,0.04456713]
[1731215626628,0.18963218,79085.0,79077.0,0.04456713]
[1731215626832,0.30067273,79086.0,79078.0,0.04456713]
[1731215627049,0.0499,79091.0,79079.0,0.36644033]
[1731215627248,0.09568221,79090.0,79080.0,0.04456713]
[1731215627472,0.09568221,79090.0,79081.0,0.17672696]
[1731215627679,0.30067273,79099.0,79082.0,0.04448594]
[1731215627896,0.18963218,79092.0,79083.0,0.17672696]
[1731215628068,0.30067273,79099.0,79084.0,0.04448594]
[1731215628283,0.0499,79106.0,79089.0,0.005]
[1731215628486,0.18963218,79096.0,79091.0,0.1]
[1731215628703,0.18963218,79104.0,79093.0,0.1]
[1731215628950,0.18963218,79104.0,79092.0,0.17672696]
[1731215628951,0.30067273,79095.0,79094.0,0.04448594]
[1731215629168,0.30067273,79095.0,79094.0,0.05017465]
[1731215629310,0.30067273,79095.0,79094.0,0.04448594]
[1731215630944,0.30059983,79095.0,79094.0,0.04448594]
[1731215631360,0.005,79086.0,79060.0,0.00143]
[1731215631574,0.0499,79091.0,79080.0,0.18963218]
[1731215631575,0.005,79082.0,79080.0,0.18963218]
[1731215631802,0.13224102,79081.0,79064.0,0.18963218]
[1731215632057,0.0653,79075.0,79064.0,0.18963218]
[1731215632262,0.01322,79074.0,79064.0,0.18963218]
[1731215632414,0.22931218,79072.0,79060.0,0.00143]
[1731215632618,0.0549,79060.0,79048.0,0.18963218]
[1731215632895,0.13224102,79059.0,79048.0,0.18963218]
[1731215633041,0.0549,79060.0,79040.0,0.18963218]
[1731215633042,0.005,79048.0,79040.0,0.18963218]
[1731215633455,0.0499,79046.0,79031.0,0.001432]
[1731215633721,0.0143,79045.0,79031.0,0.001432]
[1731215634000,0.30067273,79043.0,79031.0,0.001432]
[1731215634242,0.22167223,79043.0,79031.0,0.001432]
[1731215634412,0.11107238,79043.0,79031.0,0.001432]
[1731215634555,0.2433134,79043.0,79031.0,0.001432]
[1731215634761,0.0499,79046.0,79032.0,0.18963218]
[1731215634974,0.0499,79046.0,79043.0,0.00174906]
[1731215636929,0.18963218,79058.0,79043.0,0.00174906]
[1731215637993,0.46230464,79059.0,79044.0,0.18963218]
[1731215638198,0.0458,79065.0,79044.0,0.18963218]
[1731215638199,0.65193682,79058.0,79044.0,0.18963218]
[1731215638415,0.65193682,79058.0,79044.0,0.00625028]
[1731215638416,0.18963218,79045.0,79044.0,0.00625028]
[1731215638657,0.1974347,79057.0,79044.0,0.00625028]
[1731215638849,0.1974347,79057.0,79043.0,0.00174906]
[1731215639390,0.1974347,79057.0,79044.0,0.0442435]
[1731215639587,0.1974347,79057.0,79045.0,0.0442435]
[1731215639788,0.1974347,79057.0,79046.0,0.0442435]
[1731215639990,0.1974347,79057.0,79043.0,0.00174906]
[1731215639991,0.1974347,79057.0,79047.0,0.0442435]
[1731215640192,0.08685943,79057.0,79048.0,0.0442435]
[1731215640432,0.08685943,79057.0,79043.0,0.00174906]
[1731215640433,0.08685943,79057.0,79049.0,0.0442435]
[1731215640609,0.08685943,79057.0,79050.0,0.0442435]
[1731215640823,0.08685943,79057.0,79051.0,0.0442435]
[1731215641205,0.08685943,79057.0,79052.0,0.0442435]
[1731215641411,0.08685943,79057.0,79053.0,0.0442435]
[1731215641583,0.08685943,79057.0,79043.0,0.00174906]
[1731215641584,0.08685943,79057.0,79054.0,0.0442435]
[1731215641788,0.08685943,79057.0,79055.0,0.0442435]
[1731215642041,0.08685943,79057.0,79056.0,0.0442435]
[1731215642248,2.0,79060.0,79056.0,0.0442435]
[1731215642486,2.0,79060.0,79043.0,0.00174906]
[1731215642487,1.97478,79060.0,79057.0,0.23387568]
[1731215642619,1.97478,79060.0,79058.0,0.04860757]
[1731215642821,1.97478,79060.0,79058.0,0.02022]
[1731215643066,1.97478,79060.0,79059.0,0.4370932]
[1731215643320,1.83266441,79060.0,79059.0,0.26246102]
[1731215643529,1.83266441,79060.0,79059.0,0.25746102]
[1731215643705,1.83266441,79060.0,79059.0,0.24746102]
[1731215643916,1.83266441,79060.0,79059.0,0.1399661]
[1731215644151,1.83266441,79060.0,79055.0,0.01522]
[1731215644370,1.83266441,79060.0,79057.0,0.11522]
[1731215645508,1.83266441,79060.0,79057.0,0.01496325]
[1731215646339,1.72212582,79060.0,79057.0,0.01496325]
[1731215647421,1.72212582,79060.0,79056.0,0.1]
[1731215647422,1.72212582,79060.0,79059.0,0.1197065]
[1731215647635,1.68061037,79060.0,79059.0,0.26194752]
[1731215648112,1.68042787,79060.0,79059.0,0.26194752]
[1731215648324,1.68042787,79060.0,79059.0,0.32869765]
[1731215649081,1.6760413,79060.0,79059.0,0.32869765]
[1731215649738,1.62088701,79060.0,79059.0,0.32869765]
[1731215649971,1.43160612,79060.0,79059.0,0.32869765]
[1731215650191,1.11413869,79060.0,79059.0,0.62937038]
[1731215650406,0.84388996,79060.0,79059.0,0.64187038]
[1731215650846,0.84388996,79060.0,79059.0,0.63987038]
[1731215651052,0.84388996,79060.0,79059.0,0.62937038]
[1731215651266,0.83116656,79060.0,79059.0,0.38065759]
[1731215651719,0.83116656,79060.0,79059.0,0.26565759]
[1731215652177,0.83116656,79060.0,79059.0,0.21369765]
[1731215652600,0.80594656,79060.0,79059.0,0.17867115]
[1731215653031,0.80594656,79060.0,79059.0,0.27867115]
[1731215653278,0.80594656,79060.0,79059.0,0.30389115]
[1731215653491,0.80594656,79060.0,79059.0,0.20389115]
[1731215654216,0.72700407,79060.0,79059.0,0.20389115]
[1731215654425,0.58490761,79060.0,79059.0,0.20389115]
[1731215654637,0.58490761,79060.0,79059.0,0.30389115]
[1731215654842,0.58490761,79060.0,79059.0,0.23714102]
[1731215656151,0.18963218,79056.0,79043.0,0.00174906]
[1731215656377,0.18559076,79059.0,78984.0,0.18963218]
[1731215656378,0.1271,79055.0,79054.0,0.02522]
[1731215656564,0.1271,79055.0,79031.0,0.18963218]
[1731215656780,0.005,79053.0,79040.0,0.18963218]
[1731215656997,0.0486,79046.0,79031.0,0.18963218]
[1731215658306,0.13224102,79045.0,79031.0,0.18963218]
[1731215658503,0.30067273,79039.0,79023.0,0.18963218]
[1731215658743,0.13224102,79038.0,79031.0,0.18963218]
[1731215658963,0.13224102,79038.0,79023.0,0.18963218]
[1731215659952,0.0487,79037.0,79023.0,0.18963218]
[1731215660110,0.18094102,79037.0,79023.0,0.18963218]
[1731215660312,0.18094102,79037.0,79031.0,0.18963218]
[1731215660514,0.18094102,79037.0,79023.0,0.18963218]
[1731215662583,0.18094102,79037.0,79013.0,0.02522]
[1731215662715,0.18094102,79037.0,79023.0,0.18963218]
[1731215662919,0.6846,79036.0,79023.0,0.18963218]
[1731215663118,0.11662138,79035.0,79023.0,0.18963218]
[1731215663389,0.11662138,79035.0,79023.0,0.19047218]
[1731215663578,0.005,79014.0,78982.0,0.18963218]
[1731215663787,0.1,79023.0,79007.0,0.18963218]
[1731215663788,0.1244,79012.0,79007.0,0.18963218]
[1731215664240,0.1244,79012.0,79009.0,0.18963218]
[1731215664452,0.1244,79012.0,78998.0,0.18463218]
[1731215664688,0.18963218,79032.0,78998.0,0.18463218]
[1731215664853,0.18963218,79032.0,79006.0,0.18963218]
[1731215665051,0.18963218,79032.0,79009.0,0.18963218]
[1731215665278,0.18963218,79032.0,79010.0,0.13224102]
[1731215665480,0.18963218,79032.0,79011.0,0.1]
[1731215665621,0.18963218,79032.0,79011.0,0.26337303]
[1731215665825,0.18963218,79032.0,79011.0,0.26891646]
[1731215666213,0.30067273,79037.0,79018.0,0.18963218]
[1731215666418,0.18963218,79036.0,79018.0,0.18963218]
[1731215666623,0.49030491,79057.0,79020.0,0.1]
[1731215666834,0.18963218,79038.0,79022.0,0.1]
[1731215667092,0.18963218,79059.0,79038.0,0.1]
[1731215667277,0.18963218,79040.0,79038.0,0.1]
[1731215667547,0.18963218,79059.0,79034.0,0.005]
[1731215667548,0.18963218,79059.0,79040.0,0.1]
[1731215667691,0.18963218,79051.0,79041.0,0.13224102]
[1731215667897,0.18963218,79059.0,79042.0,0.1232241]
[1731215668103,0.0757,79063.0,79044.0,0.1]
[1731215668314,0.26533218,79078.0,79053.0,0.105]
[1731215668572,0.26533218,79078.0,79053.0,0.27246102]
[1731215668746,0.18963218,79059.0,79053.0,0.27246102]
[1731215669046,0.18963218,79059.0,79053.0,0.25746102]
[1731215669197,0.30067273,79076.0,79053.0,0.25746102]
[1731215669401,0.30067273,79076.0,79053.0,0.02522]
[1731215669626,0.30067273,79076.0,79053.0,0.25746102]
[1731215669833,0.30067273,79076.0,79053.0,0.28320712]
[1731215670032,0.6846,79077.0,79053.0,0.28320712]
[1731215670459,0.26533218,79078.0,79053.0,0.28820712]
[1731215670606,0.26533218,79078.0,79055.0,0.03022]
[1731215670806,0.26533218,79078.0,79057.0,0.12522]
[1731215671064,0.26533218,79078.0,79059.0,0.12522]
[1731215671470,0.26533218,79078.0,79059.0,0.26998302]
[1731215671973,0.26533218,79078.0,79059.0,0.29319456]
[1731215672378,0.18963218,79069.0,79059.0,0.29319456]
[1731215672584,0.26533218,79078.0,79059.0,0.29319456]
[1731215673069,0.18963218,79069.0,79059.0,0.26797456]
[1731215673474,0.26533218,79078.0,79059.0,0.26797456]
[1731215673682,0.18963218,79068.0,79059.0,0.26797456]
[1731215674260,0.18963218,79069.0,79059.0,0.26797456]
[1731215674831,0.26533218,79078.0,79059.0,0.26797456]
[1731215674973,0.50596652,79060.0,79059.0,0.26797456]
[1731215675386,0.005,79030.0,79009.0,0.02522]
[1731215675591,0.007,79044.0,79024.0,0.75892208]
[1731215675771,0.007,79044.0,79042.0,0.03577649]
[1731215675772,0.012,79044.0,79042.0,0.03577649]
[1731215676011,0.012,79044.0,79024.0,0.75892208]
[1731215676443,0.005,79043.0,79024.0,0.75892208]
[1731215676715,0.005,79043.0,79025.0,0.20813323]
[1731215676927,0.002,79036.0,79025.0,0.20813323]
[1731215677217,0.005,79041.0,79025.0,0.13224102]
[1731215677406,0.002,79045.0,79032.0,0.75892208]
[1731215677613,0.0521,79046.0,79032.0,0.8911631]
[1731215677816,0.002,79055.0,79043.0,0.75892208]
[1731215678114,0.50596652,79060.0,79044.0,0.07589221]
[1731215678289,0.007,79053.0,79043.0,0.02522]
[1731215678529,0.007,79053.0,79044.0,0.75892208]
[1731215678871,0.007,79053.0,79004.0,0.02522]
[1731215679103,0.002,79052.0,79043.0,0.75892208]
[1731215679313,0.005,79053.0,79036.0,0.02522]
[1731215679502,0.005,79053.0,79039.0,0.1]
[1731215679644,0.002,79047.0,79039.0,0.1]
[1731215679847,0.002,79047.0,79040.0,0.75892208]
[1731215680291,0.002,79047.0,79032.0,0.02522]
[1731215680504,0.005,79051.0,79034.0,0.02522]
[1731215680505,0.007,79035.0,79034.0,0.02522]
[1731215680738,0.005,79028.0,79025.0,0.15194853]
[1731215681124,0.007,79028.0,79025.0,0.15194853]
[1731215681420,0.007,79028.0,79009.0,0.18977853]
[1731215681620,0.6846,79027.0,79020.0,0.18977853]
[1731215681836,0.002,79020.0,79010.0,0.11897785]
[1731215682175,0.002,79020.0,79017.0,0.18977853]
[1731215682336,0.002,79016.0,78998.0,0.18977853]
[1731215682544,0.6846,79026.0,79008.0,0.18977853]
[1731215682545,0.67638,79026.0,79008.0,0.18977853]
[1731215682744,0.67638,79025.0,78999.0,0.13224102]
[1731215682972,0.67638,79024.0,79006.0,0.18977853]
[1731215683123,0.744018,79023.0,79006.0,0.18977853]
[1731215683494,0.0756,79035.0,79016.0,0.18977853]
[1731215683740,0.049,79047.0,79023.0,0.015]
[1731215683924,0.26537853,79050.0,79025.0,0.105]
[1731215684058,0.0756,79050.0,79027.0,0.1]
[1731215684254,0.0756,79050.0,79029.0,0.1]
[1731215684455,0.049,79062.0,79035.0,0.1]
[1731215684660,0.38360389,79076.0,79045.0,0.005]
[1731215684970,0.38360389,79076.0,79047.0,0.105]
[1731215685169,0.38360389,79076.0,79049.0,0.1]
[1731215685371,0.38360389,79076.0,79051.0,0.1]
[1731215685577,0.38360389,79076.0,79053.0,0.02522]
[1731215686682,0.38360389,79076.0,79054.0,0.02522]
[1731215686683,0.30067273,79067.0,79054.0,0.02522]
[1731215687522,2.30800389,79070.0,79056.0,0.02522]
[1731215687944,2.30800389,79070.0,79058.0,0.02522]
[1731215688782,2.30800389,79070.0,79059.0,0.17715853]
[1731215689050,2.30800389,79070.0,79059.0,0.02522]
[1731215689927,0.30800389,79069.0,79059.0,0.02522]
[1731215690136,0.63820754,79060.0,79059.0,0.02522]
[1731215690362,0.94621143,79060.0,79059.0,0.02522]
[1731215690495,1.05903218,79060.0,79059.0,0.02522]
[1731215690710,0.99521143,79060.0,79059.0,0.02522]
[1731215690914,0.0756,79059.0,79043.0,0.02522]
[1731215691137,0.30067273,79049.0,79045.0,0.02522]
[1731215691341,0.30800389,79048.0,79045.0,0.02522]
[1731215691539,0.1246,79046.0,79035.0,0.02522]
[1731215691739,0.1246,79046.0,79045.0,0.02522]
[1731215692216,0.1,79045.0,79034.0,0.16455853]
[1731215692450,0.30067273,79037.0,79034.0,0.16455853]
[1731215692647,0.30067273,79037.0,79018.0,0.18977853]
[1731215692648,0.13224102,79036.0,79035.0,0.21499853]
[1731215692762,0.13224102,79036.0,79018.0,0.18977853]
[1731215692763,0.1755324,79036.0,79027.0,0.02522]
[1731215693121,0.13224102,79036.0,79035.0,0.02522]
[1731215694078,0.13224102,79036.0,79027.0,0.02522]
[1731215695045,0.13224102,79036.0,79019.0,0.02522]
[1731215695240,0.005,79032.0,79027.0,0.02522]
[1731215695517,0.34657273,79028.0,79027.0,0.02522]
[1731215695635,0.47881375,79028.0,79027.0,0.02522]
[1731215695998,0.005,79023.0,79016.0,0.02522]
[1731215696291,0.81684102,79022.0,79016.0,0.02522]
[1731215696493,0.81684102,79022.0,78978.0,0.005]
[1731215696494,0.005,79002.0,79001.0,0.18977853]
[1731215696706,0.92184102,79002.0,79001.0,0.18977853]
[1731215696911,0.13224102,79002.0,79001.0,0.18977853]
[1731215697126,0.13224102,79002.0,79001.0,0.02522]
[1731215697268,0.19915885,79002.0,79001.0,0.02522]
[1731215697497,0.13224102,79002.0,78993.0,0.18977853]
[1731215697679,0.13224102,79001.0,78985.0,0.18977853]
[1731215697878,0.81684102,79001.0,78993.0,0.18977853]
[1731215698080,0.81684102,79001.0,78985.0,0.18977853]
[1731215700334,0.81684102,79001.0,78978.0,0.02522]
[1731215700541,0.0821841,79000.0,78985.0,0.18477853]
[1731215700792,0.13224102,78999.0,78978.0,0.02522]
[1731215700999,0.13224102,78999.0,78985.0,0.18977853]
[1731215701216,0.08894102,78999.0,78993.0,0.18977853]
[1731215701373,0.6846,79000.0,78985.0,0.21499853]
[1731215701618,0.62770967,79000.0,78987.0,0.1]
[1731215701756,0.62770967,79000.0,78988.0,0.02522]
[1731215702195,0.32201955,78999.0,78988.0,0.02522]
[1731215702399,0.62770967,79000.0,78992.0,0.02522]
[1731215703050,0.62770967,79013.0,78992.0,0.02522]
[1731215703361,0.30067273,79006.0,78992.0,0.02522]
[1731215703508,0.13224102,79005.0,78993.0,0.18977853]
[1731215703713,0.005,79004.0,78985.0,0.02522]
[1731215703915,0.1760324,79003.0,78992.0,0.18977853]
[1731215704703,0.30067273,78996.0,78980.0,0.02522]